bitfinex-derivatives/quotes_SOLF0:USTF0_20241026
["timestamp","ask_amount","ask_price","bid_price","bid_amount"]
[1729946868201,8.17602881,169.37,169.33,2.956]
[1729946871095,8.17602881,169.4,169.36,2.9555]
[1729946871602,8.17602881,169.4,169.32,4.26]
[1729946871603,8.17602881,169.4,169.38,2.9552]
[1729946872102,9.44632881,169.42,169.39,2.955]
[1729946872309,8.17602881,169.42,169.39,2.955]
[1729946872498,1.2411,169.43,169.39,2.955]
[1729946872693,8.17602881,169.42,169.39,2.955]
[1729946874308,2.9538,169.47,169.42,2.9545]
[1729946874504,8.17602881,169.45,169.4,8.17602881]
[1729946875402,8.17602881,169.46,169.4,8.17602881]
[1729946875602,4.26,169.48,169.4,12.43602881]
[1729946875800,8.17602881,169.47,169.4,12.43602881]
[1729946876005,4.26,169.48,169.45,2.954]
[1729946876201,8.17602881,169.47,169.4,12.43602881]
[1729946876709,8.17602881,169.47,169.43,2.9543]
[1729946880713,8.17602881,169.44,169.33,2.5739]
[1729946880916,8.17602881,169.42,169.36,8.17602881]
[1729946881414,8.17602881,169.42,169.39,2.9551]
[1729946882607,8.17602881,169.43,169.39,2.9551]
[1729946883111,4.26,169.44,169.4,8.17602881]
[1729946883318,4.26,169.44,169.41,8.17602881]
[1729946883514,8.17602881,169.45,169.41,8.17602881]
[1729946883813,8.17602881,169.45,169.42,2.9545]
[1729946886110,8.17602881,169.43,169.38,4.26]
[1729946886709,8.17602881,169.43,169.37,8.17602881]
[1729946887409,8.17602881,169.43,169.39,2.9551]
[1729946887610,8.17602881,169.41,169.37,8.17602881]
[1729946887920,8.17602881,169.41,169.38,2.9552]
[1729946890717,8.17602881,169.41,169.39,2.9551]
[1729946891520,8.17602881,169.41,169.37,8.17602881]
[1729946891717,8.17602881,169.4,169.35,12.43602881]
[1729946892519,8.17602881,169.4,169.35,8.17602881]
[1729946892715,8.17602881,169.4,169.38,2.9553]
[1729946893922,8.17602881,169.4,169.37,2.9554]
[1729946895722,8.17602881,169.4,169.38,2.9553]
[1729946896727,8.17602881,169.4,169.35,8.17602881]
[1729946897220,8.17602881,169.39,169.34,4.26]
[1729946897420,11.13122881,169.39,169.34,2.956]
[1729946897927,11.13122881,169.39,169.32,8.17602881]
[1729946898425,8.17602881,169.37,169.32,8.17602881]
[1729946898627,8.17602881,169.37,169.35,2.9558]
[1729946899634,3.7521,169.42,169.31,4.26]
[1729946899831,12.43602881,169.41,169.38,2.9552]
[1729946900427,11.13112881,169.39,169.34,2.9559]
[1729946900632,8.17602881,169.39,169.33,8.17602881]
[1729946901724,8.17602881,169.39,169.36,2.9555]
[1729946904030,8.17602881,169.39,169.33,8.17602881]
[1729946904231,8.17602881,169.39,169.37,2.9554]
[1729946907741,8.17602881,169.39,169.35,8.17602881]
[1729946909237,8.17602881,169.39,169.38,2.9553]
[1729946912249,8.17602881,169.39,169.38,2.9553]
[1729946919654,16.37682881,169.43,169.41,2.9546]
[1729946921150,16.37682881,169.43,169.37,8.17602881]
[1729946921151,13.75372881,169.43,169.42,2.9546]
[1729946926158,1.3177,169.43,169.42,2.9546]
[1729946926462,8.17602881,169.43,169.39,8.17602881]
[1729946926648,8.17602881,169.44,169.39,8.17602881]
[1729946928161,8.17602881,169.43,169.39,8.17602881]
[1729946929458,4.24,169.46,169.36,3.7874]
[1729946929459,8.17602881,169.42,169.36,3.7874]
[1729946929651,8.17602881,169.42,169.36,13.65642881]
[1729946929857,8.17602881,169.41,169.36,13.65642881]
[1729946931165,8.17602881,169.4,169.34,8.17602881]
[1729946931360,8.17602881,169.4,169.34,12.41602881]
[1729946931962,8.17602881,169.4,169.38,2.9551]
[1729946932259,8.17602881,169.4,169.34,12.41602881]
[1729946934360,8.17602881,169.4,169.38,2.9552]
[1729946940659,4.24,169.42,169.34,2.9558]
[1729946940660,8.17602881,169.39,169.34,2.9558]
[1729946940864,8.17602881,169.36,169.34,2.9558]
[1729946941572,8.17602881,169.35,169.34,2.9558]
[1729946946768,8.17602881,169.36,169.31,12.41602881]
[1729946946968,3.7841,169.41,169.33,8.17602881]
[1729946947275,12.41602881,169.4,169.35,8.17602881]
[1729946947475,4.24,169.43,169.39,2.9551]
[1729946947677,8.17602881,169.42,169.39,2.9551]
[1729946948877,8.17602881,169.43,169.4,2.9548]
[1729946949176,8.17602881,169.43,169.38,8.17602881]
[1729946949875,8.17602881,169.43,169.4,2.9548]
[1729946950278,8.17602881,169.42,169.4,2.9548]
[1729946953178,2.551,169.46,169.38,8.17602881]
[1729946953385,8.17602881,169.45,169.43,2.9543]
[1729946955582,8.17602881,169.45,169.44,2.9542]
[1729946959392,4.24,169.47,169.4,8.17602881]
[1729946959592,14.19892353,169.5,169.41,8.17602881]
[1729946959797,8.17602881,169.46,169.41,8.17602881]
[1729946960094,8.17602881,169.46,169.45,2.9541]
[1729946961294,8.17602881,169.46,169.4,8.17602881]
[1729946961495,8.17602881,169.45,169.4,8.17602881]
[1729946962499,8.17602881,169.42,169.38,12.39602881]
[1729946962993,8.17602881,169.42,169.41,2.9548]
[1729946965499,8.17602881,169.42,169.4,2.9549]
[1729946966197,7.1741,169.45,169.25,2.93068761]
[1729946966198,8.17602881,169.41,169.25,2.93068761]
[1729946966497,4.22,169.45,169.35,8.17602881]
[1729946966498,8.17602881,169.39,169.35,8.17602881]
[1729946968403,8.17602881,169.39,169.37,2.9554]
[1729946968705,8.17602881,169.39,169.34,8.17602881]
[1729946969204,8.17602881,169.38,169.34,8.17602881]
[1729946970294,8.17602881,169.38,169.35,2.9557]
[1729946972098,8.17602881,169.37,169.35,2.9557]
[1729946972604,8.17602881,169.37,169.34,2.956]
[1729946972802,8.17602881,169.36,169.32,4.22]
[1729946973106,8.17602881,169.34,169.31,2.9564]
[1729946973898,8.17602881,169.33,169.27,8.17602881]
[1729946974206,8.17602881,169.31,169.26,12.39602881]
[1729946974407,8.17602881,169.31,169.25,3.6774]
[1729946974610,8.17602881,169.29,169.27,2.9572]
[1729946975207,8.17602881,169.29,169.26,2.9573]
[1729946976401,8.17602881,169.28,169.21,4.22]
[1729946976712,8.17602881,169.24,169.18,3.7833]
[1729946977007,8.17602881,169.23,169.19,2.9586]
[1729946977897,8.17602881,169.23,169.17,8.17602881]
[1729946978108,8.17602881,169.23,169.2,2.9584]
[1729946980705,2.5293,169.28,169.2,8.17602881]
[1729946980906,8.17602881,169.26,169.23,2.9579]
[1729946981213,8.17602881,169.24,169.18,8.17602881]
[1729946981406,8.17602881,169.22,169.17,1.2731]
[1729946981602,8.17602881,169.21,169.17,1.2731]
[1729946981909,8.17602881,169.21,169.16,12.39602881]
[1729946982609,8.17602881,169.21,169.19,2.9585]
[1729946983804,8.17602881,169.22,169.19,2.9585]
[1729946984810,8.17602881,169.22,169.17,8.17602881]
[1729946985015,8.17602881,169.22,169.2,2.9584]
[1729946993315,4.24,169.24,169.16,12.39602881]
[1729946993519,12.41602881,169.24,169.22,2.958]
[1729946993715,8.17602881,169.24,169.22,2.958]
[1729946994812,8.17602881,169.24,169.23,2.9579]
[1729946995017,8.17602881,169.25,169.19,8.17602881]
[1729946995211,8.17602881,169.25,169.2,8.17602881]
[1729946996318,8.17602881,169.26,169.2,8.17602881]
[1729946996520,8.17602881,169.26,169.2,12.41602881]
[1729946997321,8.17602881,169.26,169.24,2.9577]
[1729946997914,6.7693,169.28,169.24,2.9577]
[1729946998118,8.17602881,169.26,169.24,2.9577]
[1729946999010,6.7693,169.28,169.24,2.9577]
[1729946999212,6.7693,169.28,169.25,2.9574]
[1729946999417,8.17602881,169.3,169.25,8.17602881]
[1729947000223,8.17602881,169.31,169.27,8.17602881]
[1729947000526,8.17602881,169.33,169.27,8.17602881]
[1729947000722,8.17602881,169.33,169.31,2.9564]
[1729947001320,8.17602881,169.35,169.32,2.9562]
[1729947003530,4.24,169.36,169.3,8.17602881]
[1729947003730,12.41602881,169.36,169.3,8.17602881]
[1729947004026,8.17602881,169.36,169.3,8.17602881]
[1729947004530,57.46,169.48,169.33,8.17602881]
[1729947004836,8.17602881,169.38,169.34,4.24]
[1729947005015,8.17602881,169.37,169.32,4.24]
[1729947005215,8.17602881,169.35,169.3,10.74692881]
[1729947005422,8.17602881,169.35,169.31,4.24]
[1729947006923,8.17602881,169.35,169.3,8.17602881]
[1729947007124,8.17602881,169.35,169.3,12.41602881]
[1729947007321,8.17602881,169.35,169.32,2.9562]
[1729947010017,8.17602881,169.35,169.3,12.41602881]
[1729947010222,8.17602881,169.37,169.33,2.9562]
[1729947010923,8.17602881,169.35,169.33,2.9562]
[1729947015722,8.17602881,169.35,169.32,2.9562]
[1729947015927,8.17602881,169.35,169.3,12.41602881]
[1729947016425,8.17602881,169.35,169.32,2.9562]
[1729947016928,8.17602881,169.35,169.33,2.9561]
[1729947021837,8.17602881,169.35,169.32,2.9563]
[1729947022327,8.17602881,169.35,169.3,12.39602881]
[1729947022932,8.17602881,169.35,169.33,2.9562]
[1729947025433,8.17602881,169.35,169.3,12.39602881]
[1729947025634,8.17602881,169.33,169.29,2.9568]
[1729947025830,8.17602881,169.33,169.28,4.22]
[1729947026627,8.17602881,169.33,169.3,2.9567]
[1729947026839,8.17602881,169.34,169.28,12.39602881]
[1729947028441,8.17602881,169.34,169.3,2.9566]
[1729947032037,8.17602881,169.31,169.23,2.4922]
[1729947032236,8.17602881,169.29,169.24,12.39602881]
[1729947032443,8.17602881,169.29,169.24,8.17602881]
[1729947032746,8.17602881,169.29,169.26,2.9573]
[1729947033039,8.17602881,169.29,169.24,12.39602881]
[1729947034347,8.17602881,169.29,169.27,2.9572]
[1729947036248,8.17602881,169.29,169.26,2.9572]
[1729947037543,8.17602881,169.29,169.27,2.9572]
[1729947038950,2.4879,169.34,169.28,8.17602881]
[1729947039154,8.17602881,169.36,169.3,8.17602881]
[1729947040948,8.17602881,169.36,169.32,2.9562]
[1729947041549,4.22,169.38,169.3,8.17602881]
[1729947041746,8.17602881,169.37,169.31,8.17602881]
[1729947042349,8.17602881,169.37,169.33,2.9561]
[1729947042652,8.17602881,169.34,169.29,4.22]
[1729947042851,8.17602881,169.32,169.27,8.17602881]
[1729947043056,8.17602881,169.31,169.25,12.39602881]
[1729947043451,8.17602881,169.31,169.26,2.9572]
[1729947043646,8.17602881,169.31,169.25,12.39602881]
[1729947045050,8.17602881,169.31,169.27,2.9571]
[1729947045249,8.17602881,169.31,169.25,12.39602881]
[1729947047258,8.17602881,169.31,169.27,2.9571]
[1729947059473,8.17602881,169.28,169.21,1.2198]
[1729947059678,8.17602881,169.28,169.22,8.17602881]
[1729947059875,8.17602881,169.28,169.22,12.39602881]
[1729947060178,8.17602881,169.26,169.22,4.22]
[1729947060872,8.17602881,169.26,169.23,2.9578]
[1729947061280,8.17602881,169.26,169.21,8.17602881]
[1729947061474,8.17602881,169.23,169.18,2.9587]
[1729947061775,8.17602881,169.23,169.17,12.39602881]
[1729947061979,8.17602881,169.23,169.19,2.9585]
[1729947068586,8.17602881,169.22,169.19,2.9585]
[1729947071589,3.88,169.33,169.19,8.17602881]
[1729947071889,8.17602881,169.26,169.2,8.17602881]
[1729947072095,8.17602881,169.26,169.21,4.24]
[1729947072283,8.17602881,169.26,169.24,2.9576]
[1729947074887,8.17602881,169.25,169.19,12.41602881]
[1729947075086,8.17602881,169.23,169.19,4.24]
[1729947075986,8.17602881,169.23,169.22,2.9581]
[1729947076985,2.4629,169.27,169.25,2.9574]
[1729947077178,2.4629,169.27,169.22,8.17602881]
[1729947077179,8.17602881,169.27,169.22,8.17602881]
[1729947077382,8.17602881,169.32,169.26,8.17602881]
[1729947077591,8.17602881,169.35,169.29,8.17602881]
[1729947077785,8.17602881,169.35,169.3,4.22]
[1729947078187,8.17602881,169.35,169.32,2.9562]
[1729947078791,8.17602881,169.35,169.3,4.22]
[1729947079093,8.17602881,169.33,169.3,4.22]
[1729947079589,8.17602881,169.33,169.27,8.17602881]
[1729947079791,8.17602881,169.33,169.28,4.22]
[1729947080294,1.1978,169.38,169.29,8.17602881]
[1729947080493,8.17602881,169.34,169.29,8.17602881]
[1729947081393,8.17602881,169.34,169.31,2.9564]
[1729947083585,8.17602881,169.34,169.3,2.9566]
[1729947083786,8.17602881,169.34,169.29,8.17602881]
[1729947084294,8.17602881,169.34,169.31,2.9564]
[1729947085794,8.17602881,169.35,169.31,2.9564]
[1729947089199,8.17602881,169.35,169.29,8.17602881]
[1729947089897,8.17602881,169.35,169.31,2.9564]
[1729947091495,8.17602881,169.32,169.29,2.9567]
[1729947092000,8.17602881,169.34,169.28,12.39602881]
[1729947092501,8.17602881,169.35,169.3,8.17602881]
[1729947093099,8.17602881,169.35,169.31,2.9565]
[1729947093801,8.17602881,169.35,169.3,8.17602881]
[1729947093999,8.17602881,169.35,169.3,2.9566]
[1729947094000,8.17602881,169.34,169.3,2.9566]
[1729947094503,8.17602881,169.34,169.29,8.17602881]
[1729947094696,8.17602881,169.34,169.29,2.9567]
[1729947096502,8.17602881,169.34,169.3,2.9567]
[1729947098705,5.4178,169.38,169.28,12.39602881]
[1729947098906,8.17602881,169.35,169.31,2.9564]
[1729947100302,8.17602881,169.35,169.3,8.17602881]
[1729947100606,8.17602881,169.35,169.32,2.9563]
[1729947111905,11.13182881,169.35,169.31,2.9564]
[1729947112514,11.13182881,169.35,169.3,11.13262881]
[1729947112515,2.956,169.34,169.3,11.13262881]
[1729947112713,11.13202881,169.34,169.3,2.9566]
[1729947113330,8.17602881,169.34,169.3,2.9566]
[1729947115126,11.13202881,169.34,169.28,12.39602881]
[1729947115428,11.13202881,169.34,169.29,2.9568]
[1729947117026,8.17602881,169.32,169.28,2.957]
[1729947118030,8.17602881,169.34,169.3,2.9566]
[1729947118222,8.17602881,169.34,169.28,8.17602881]
[1729947119119,2.9557,169.36,169.31,2.9564]
[1729947119427,8.17602881,169.35,169.31,2.9564]
[1729947120319,1.1978,169.38,169.34,2.9558]
[1729947122624,2.5977,169.4,169.38,2.9552]
[1729947122625,1.2804,169.4,169.38,2.9552]
[1729947122825,9.36662881,169.44,169.39,8.17602881]
[1729947123030,9.36662881,169.44,169.4,8.17602881]
[1729947123031,1.1906,169.44,169.4,8.17602881]
[1729947123231,1.218,169.45,169.4,8.17602881]
[1729947123426,181.70591363,169.47,169.42,8.17602881]
[1729947123626,181.70591363,169.47,169.38,4.22]
[1729947123627,8.17602881,169.44,169.38,4.22]
[1729947123824,8.17602881,169.43,169.39,2.955]
[1729947124733,8.17602881,169.41,169.38,7.1752]
[1729947124930,8.17602881,169.4,169.35,4.22]
[1729947125922,8.17602881,169.39,169.35,4.22]
[1729947126934,8.17602881,169.39,169.35,7.1758]
[1729947128035,2.4502,169.46,169.36,8.17602881]
[1729947128331,8.17602881,169.39,169.34,8.17602881]
[1729947128634,8.17602881,169.37,169.32,4.22]
[1729947129140,8.17602881,169.37,169.33,2.956]
[1729947130234,11.13122881,169.39,169.34,2.956]
[1729947133737,8.17602881,169.37,169.34,2.956]
[1729947134135,8.17602881,169.35,169.2,3.0243104]
[1729947134342,8.17602881,169.34,169.27,12.39602881]
[1729947134536,8.17602881,169.32,169.27,8.17602881]
[1729947134738,8.17602881,169.33,169.29,8.17602881]
[1729947135056,3.7886,169.4,169.29,8.17602881]
[1729947135057,12.39602881,169.35,169.29,8.17602881]
[1729947135345,3.7886,169.4,169.26,4.22]
[1729947135346,8.17602881,169.36,169.32,8.17602881]
[1729947135643,8.17602881,169.36,169.33,2.956]
[1729947135840,12.39602881,169.38,169.32,8.17602881]
[1729947136247,8.17602881,169.38,169.34,2.9559]
[1729947137541,8.17602881,169.35,169.26,4.22]
[1729947137745,8.17602881,169.35,169.24,4.22]
[1729947137746,8.17602881,169.31,169.24,4.22]
[1729947137949,8.17602881,169.31,169.25,8.17602881]
[1729947138249,8.17602881,169.31,169.26,8.17602881]
[1729947138448,8.17602881,169.32,169.28,8.17602881]
[1729947139344,8.17602881,169.32,169.29,2.9568]
[1729947140156,8.17602881,169.33,169.29,2.9568]
[1729947140639,8.17602881,169.33,169.26,8.17602881]
[1729947140841,8.17602881,169.33,169.28,2.957]
[1729947141343,7.176,169.34,169.26,2.9574]
[1729947141344,8.17602881,169.3,169.26,2.9574]
[1729947142337,2.9564,169.32,169.26,2.9574]
[1729947142338,8.17602881,169.28,169.26,2.9574]
[1729947143346,8.17602881,169.28,169.25,2.9575]
[1729947143945,8.17602881,169.27,169.24,2.9577]
[1729947147649,8.17602881,169.27,169.23,2.9579]
[1729947147851,8.17602881,169.26,169.23,2.9579]
[1729947148246,8.17602881,169.26,169.22,2.9579]
[1729947148539,8.17602881,169.26,169.2,12.39602881]
[1729947148847,8.17602881,169.24,169.21,2.9582]
[1729947149049,8.17602881,169.24,169.18,12.39602881]
[1729947149243,8.17602881,169.22,169.18,4.22]
[1729947149553,8.17602881,169.2,169.18,7.1788]
[1729947149853,8.17602881,169.2,169.18,2.9588]
[1729947151559,8.17602881,169.2,169.15,12.39602881]
[1729947153361,8.17602881,169.2,169.17,2.9589]
[1729947163973,8.17602881,169.2,169.15,8.17602881]
[1729947164168,8.17602881,169.22,169.17,8.17602881]
[1729947164666,8.17602881,169.22,169.18,2.9587]
[1729947173073,4.24,169.24,169.18,8.17602881]
[1729947173269,12.41602881,169.24,169.2,2.9584]
[1729947173473,12.41602881,169.24,169.18,8.17602881]
[1729947173672,12.41602881,169.24,169.2,2.9583]
[1729947173870,12.41602881,169.24,169.18,8.17602881]
[1729947174377,8.17602881,169.24,169.2,2.9583]
[1729947177481,8.17602881,169.22,169.2,2.9583]
[1729947178475,8.17602881,169.22,169.19,2.9585]
[1729947178682,3.8817,169.25,169.11,1.2136]
[1729947178683,8.17602881,169.21,169.14,8.17602881]
[1729947178985,8.17602881,169.19,169.14,12.41602881]
[1729947179178,8.17602881,169.19,169.17,2.9588]
[1729947180378,8.17602881,169.19,169.14,12.41602881]
[1729947180575,8.17602881,169.19,169.18,2.9588]
[1729947180888,8.17602881,169.19,169.14,12.41602881]
[1729947181288,8.17602881,169.19,169.17,2.9589]
[1729947182092,2.958,169.23,169.17,2.9589]
[1729947182283,8.17602881,169.19,169.17,2.9589]
[1729947185291,6.8393,169.25,169.2,2.9584]
[1729947185496,8.17602881,169.21,169.16,8.17602881]
[1729947186401,8.17602881,169.21,169.17,2.9589]
[1729947189598,8.17602881,169.2,169.17,2.9589]
[1729947192802,8.17602881,169.18,169.14,4.24]
[1729947192994,8.17602881,169.18,169.14,7.1994]
[1729947193895,8.17602881,169.18,169.14,4.24]
[1729947194202,8.17602881,169.18,169.15,2.9592]
[1729947194396,8.17602881,169.18,169.14,4.24]
[1729947194592,8.17602881,169.18,169.14,7.1993]
[1729947194896,8.17602881,169.18,169.14,4.24]
[1729947196004,8.17602881,169.18,169.14,7.1995]
[1729947196507,8.17602881,169.18,169.14,2.9595]
[1729947196694,8.17602881,169.18,169.12,8.17602881]
[1729947196904,8.17602881,169.14,169.1,7.2]
[1729947197106,8.17602881,169.14,169.1,4.24]
[1729947197294,8.17602881,169.11,169.08,2.9605]
[1729947197500,8.17602881,169.09,169.04,2.4996]
[1729947197997,8.17602881,169.09,169.02,4.24]
[1729947198199,8.17602881,169.07,169.02,8.17602881]
[1729947198405,4.22,169.12,169.02,8.17602881]
[1729947198406,8.17602881,169.06,169.02,2.9614]
[1729947199197,8.17602881,169.06,169.0,12.39602881]
[1729947199198,8.17602881,169.05,169.0,4.22]
[1729947199513,8.17602881,169.06,169.01,8.17602881]
[1729947200206,8.17602881,169.06,169.02,2.9615]
[1729947201500,3.824,169.11,168.85,2.71400156]
[1729947201700,8.17602881,169.01,168.97,2.9624]
[1729947201900,8.17602881,169.01,168.96,8.17602881]
[1729947202302,8.17602881,169.01,168.97,2.9624]
[1729947202502,8.17602881,169.01,168.95,8.17602881]
[1729947202709,8.17602881,169.03,168.99,2.962]
[1729947202903,12.41602881,169.03,168.99,2.962]
[1729947203609,180.12641775,169.11,168.98,8.17602881]
[1729947203806,8.17602881,169.05,168.99,8.17602881]
[1729947205108,8.17602881,169.05,169.01,2.9616]
[1729947205308,4.24,169.06,169.01,2.9616]
[1729947205309,8.17602881,169.04,169.01,2.9616]
[1729947205607,8.17602881,169.02,168.98,2.9623]
[1729947205807,8.17602881,169.0,168.94,2.5759]
[1729947206011,8.17602881,169.0,168.95,8.17602881]
[1729947206212,8.17602881,169.0,168.97,2.9623]
[1729947206911,8.17602881,169.0,168.98,2.9623]
[1729947207112,8.17602881,169.01,168.98,2.9623]
[1729947211216,8.17602881,169.01,168.99,2.9621]
[1729947213124,8.17602881,169.04,169.01,2.9616]
[1729947213420,12.41602881,169.04,169.01,2.9616]
[1729947216022,8.17602881,169.04,169.01,2.9616]
[1729947216221,12.41602881,169.04,169.01,2.9616]
[1729947216523,12.41602881,169.04,169.02,2.9616]
[1729947216720,12.41602881,169.05,169.0,8.17602881]
[1729947217117,12.41602881,169.05,169.03,2.9613]
[1729947217812,3.7679,169.1,169.03,2.9613]
[1729947217813,8.17602881,169.08,169.03,8.17602881]
[1729947218018,12.41602881,169.09,169.03,8.17602881]
[1729947218424,12.41602881,169.09,169.06,2.9608]
[1729947219019,8.17602881,169.08,169.06,2.9608]
[1729947219220,8.17602881,169.07,168.97,4.24]
[1729947219420,8.17602881,169.04,168.99,8.17602881]
[1729947220326,8.17602881,169.04,169.02,2.9615]
[1729947222825,8.17602881,169.03,168.97,4.24]
[1729947223127,8.17602881,169.03,168.97,12.41602881]
[1729947224326,8.17602881,169.03,169.0,2.9618]
[1729947225026,3.7679,169.1,168.97,12.41602881]
[1729947225221,4.24,169.09,168.98,8.17602881]
[1729947225421,8.17602881,169.04,168.98,8.17602881]
[1729947226219,8.17602881,169.03,168.98,8.17602881]
[1729947226421,8.17602881,169.01,168.94,3.7835]
[1729947226626,8.17602881,169.01,168.96,8.17602881]
[1729947226924,8.17602881,169.01,169.0,2.9619]
[1729947227730,8.17602881,169.01,168.98,2.9622]
[1729947228030,8.17602881,169.01,168.96,8.17602881]
[1729947228622,8.17602881,169.01,168.97,2.9624]
[1729947228820,8.17602881,169.01,168.96,8.17602881]
[1729947229624,8.17602881,169.01,168.98,2.9622]
[1729947232328,8.17602881,168.99,168.87,5.9282]
[1729947232532,8.17602881,168.99,168.93,8.17602881]
[1729947232829,4.3,169.02,168.97,2.9624]
[1729947233027,12.47602881,169.01,168.96,8.17602881]
[1729947233528,12.47602881,169.01,168.98,2.9622]
[1729947233932,8.17602881,169.01,168.98,2.9622]
[1729947235535,4.3,169.02,168.98,2.9622]
[1729947235829,8.17602881,169.0,168.98,2.9622]
[1729947236629,1.3072,169.03,169.0,2.9619]
[1729947236836,2.4405,169.04,169.0,2.9619]
[1729947236837,12.47602881,169.02,169.0,2.9619]
[1729947238634,12.47602881,169.02,168.97,8.17602881]
[1729947238830,8.17602881,169.0,168.98,2.9622]
[1729947241551,8.17602881,169.0,168.96,2.9625]
[1729947241848,8.17602881,169.0,168.94,8.17602881]
[1729947243141,8.17602881,168.99,168.94,8.17602881]
[1729947244247,8.17602881,168.99,168.96,2.9625]
[1729947244450,8.17602881,168.99,168.94,8.17602881]
[1729947245239,8.17602881,168.99,168.97,2.9624]
[1729947245647,8.17602881,168.99,168.94,8.17602881]
[1729947245942,4.3,169.01,168.93,2.963]
[1729947245943,8.17602881,168.96,168.93,2.963]
[1729947246141,8.17602881,168.96,168.91,4.3]
[1729947246142,4.3,169.01,168.92,8.17602881]
[1729947246337,8.17602881,168.97,168.92,8.17602881]
[1729947247146,8.17602881,168.97,168.95,2.9627]
[1729947247346,8.17602881,168.97,168.92,8.17602881]
[1729947248350,8.17602881,168.97,168.94,2.9629]
[1729947248739,8.17602881,168.97,168.92,8.17602881]
[1729947248947,8.17602881,168.97,168.95,2.9627]
[1729947251252,1.2917,169.03,168.95,8.17602881]
[1729947251460,8.17602881,169.01,168.98,2.9623]
[1729947251958,8.17602881,169.01,168.99,2.962]
[1729947252651,4.3,169.02,168.99,2.962]
[1729947252855,1.2917,169.03,168.98,8.17602881]
[1729947253157,14.91652881,169.04,169.01,2.9617]
[1729947253746,8.17602881,169.03,168.96,4.3]
[1729947253945,8.17602881,169.03,168.99,2.9621]
[1729947254552,8.17602881,169.03,168.96,12.47602881]
[1729947254757,8.17602881,169.03,168.97,8.17602881]
[1729947254954,14.91652881,169.04,168.97,8.17602881]
[1729947255553,14.91652881,169.04,169.0,2.9618]
[1729947255854,10.61652881,169.04,169.0,2.9618]
[1729947256652,2.4405,169.04,169.0,2.9618]
[1729947256855,8.17602881,169.03,169.0,2.9618]
[1729947258261,2.4405,169.04,169.0,2.9618]
[1729947258561,2.4405,169.04,168.97,8.17602881]
[1729947258857,8.17602881,169.03,168.97,8.17602881]
[1729947259953,8.17602881,169.03,168.96,4.3]
[1729947260262,8.17602881,169.03,168.97,8.17602881]
[1729947260559,8.17602881,169.03,168.99,2.962]
[1729947260760,8.17602881,169.02,168.99,2.962]
[1729947264360,2.4405,169.04,168.99,2.962]
[1729947264863,2.4405,169.04,169.0,2.9618]
[1729947264864,8.17602881,169.03,169.0,2.9618]
[1729947265864,8.17602881,169.04,169.0,2.9618]
[1729947268755,7.2409,169.06,169.0,2.9618]
[1729947268966,8.17602881,169.04,169.0,2.9618]
[1729947272562,8.17602881,169.03,169.0,2.9618]
[1729947274264,8.17602881,169.03,168.99,2.962]
[1729947276369,11.13742881,169.03,168.97,7.2423]
[1729947276871,11.13742881,169.03,168.97,4.28]
[1729947277070,11.13742881,169.03,168.96,8.17602881]
[1729947277270,11.13742881,169.03,168.96,12.45602881]
[1729947277571,8.17602881,169.01,168.96,12.45602881]
[1729947278276,8.17602881,169.01,168.98,2.9623]
[1729947279671,4.28,169.06,168.96,4.28]
[1729947279865,8.17602881,169.04,169.0,2.9618]
[1729947281474,7.2409,169.06,169.0,2.9618]
[1729947281668,8.17602881,169.04,169.0,2.9618]
[1729947284269,4.28,169.07,169.02,2.9615]
[1729947284471,8.17602881,169.05,169.02,2.9615]
[1729947287879,8.17602881,169.05,169.03,2.9613]
[1729947288387,2.5888,169.09,169.0,4.24]
[1729947288575,2.98956282,169.16,169.02,8.17602881]
[1729947288576,8.17602881,169.08,169.02,8.17602881]
[1729947288873,8.17602881,169.1,169.04,8.17602881]
[1729947289070,8.17602881,169.1,169.06,2.9608]
[1729947298981,8.17602881,169.07,169.02,2.9615]
[1729947299186,8.17602881,169.07,169.02,7.2015]
[1729947300279,8.17602881,169.1,169.05,2.961]
[1729947301385,11.13622881,169.1,169.05,2.961]
[1729947302386,8.17602881,169.1,169.07,2.9607]
[1729947302582,8.17602881,169.11,169.05,8.17602881]
[1729947302784,12.00832881,169.14,169.08,8.17602881]
[1729947303179,8.17602881,169.12,169.09,2.9603]
[1729947303877,8.17602881,169.12,169.08,8.17602881]
[1729947304183,8.17602881,169.12,169.07,8.17602881]
[1729947304887,8.17602881,169.12,169.09,2.9602]
[1729947306290,14.96782881,169.14,169.09,11.13622881]